bitfinex/quotes_ETHUSD_20250930
["timestamp","ask_amount","ask_price","bid_price","bid_amount"]
[1759264206090,2.52090273,4165.1,4165.0,13.37580251]
[1759264206455,2.52090273,4165.1,4165.0,7.649]
[1759264206656,2.77030273,4165.1,4165.0,2.4]
[1759264206862,2.77030273,4165.1,4165.0,13.12580251]
[1759264207270,2.52090273,4165.1,4165.0,13.12580251]
[1759264207973,2.52090273,4165.1,4165.0,18.60260502]
[1759264208297,2.40090273,4165.1,4165.0,19.68748461]
[1759264208798,0.12,4165.2,4165.1,2.4]
[1759264208957,0.12,4165.2,4165.1,2.77767959]
[1759264209164,2.52084509,4165.2,4165.1,2.77767959]
[1759264209781,2.77024509,4165.2,4165.1,2.4]
[1759264211791,0.12,4165.2,4165.1,2.4]
[1759264212004,2.52084509,4165.2,4165.1,3.0656]
[1759264212988,2.52084509,4165.2,4165.1,2.6341]
[1759264213290,0.12,4165.2,4165.1,2.6341]
[1759264213472,2.52084509,4165.2,4165.1,2.6341]
[1759264214264,2.52084509,4165.2,4165.1,2.8744]
[1759264214666,2.74614509,4165.2,4165.1,2.4]
[1759264214866,3.21134509,4165.2,4165.1,7.65]
[1759264215077,2.52084509,4165.2,4165.1,7.65]
[1759264215287,2.52084509,4165.2,4165.1,8.3156]
[1759264215910,2.52084509,4165.2,4165.1,8.5559]
[1759264216311,0.12,4165.2,4165.1,8.93357959]
[1759264216515,2.52084509,4165.2,4165.1,8.93357959]
[1759264217080,0.12,4165.2,4165.1,8.93357959]
[1759264217281,0.001,4165.7,4165.1,11.3442768]
[1759264217584,2.40161435,4165.7,4165.6,5.47680251]
[1759264217786,2.52161435,4165.7,4165.6,8.22980251]
[1759264218112,3.20701435,4165.7,4165.6,5.47680251]
[1759264218316,3.20701435,4165.7,4165.6,8.22980251]
[1759264219015,2.40061455,4165.6,4165.2,2.496]
[1759264219186,2.40178745,4165.3,4165.2,2.496]
[1759264219387,2.40178745,4165.3,4165.2,13.12580251]
[1759264219388,3.20718745,4165.3,4165.2,13.12580251]
[1759264219692,2.75958745,4165.3,4165.2,13.12580251]
[1759264220087,3.20718745,4165.3,4165.2,13.12580251]
[1759264220303,3.20718745,4165.3,4165.2,7.87680251]
[1759264220512,3.20718745,4165.3,4165.2,10.62980251]
[1759264221116,3.20718745,4165.3,4165.2,2.4]
[1759264221425,2.52178745,4165.3,4165.2,10.62980251]
[1759264221712,2.52178745,4165.3,4165.2,11.7188821]
[1759264221884,2.52178745,4165.3,4165.2,11.0074821]
[1759264222733,0.121,4165.3,4165.2,11.0074821]
[1759264222936,0.001,4165.7,4165.4,0.2403]
[1759264222937,2.40067218,4165.5,4165.4,0.2403]
[1759264223233,2.40067218,4165.5,4165.4,5.153]
[1759264223401,2.40067218,4165.5,4165.4,7.649]
[1759264223723,2.40067218,4165.5,4165.4,13.12580251]
[1759264223724,3.08607218,4165.5,4165.4,13.12580251]
[1759264223941,3.08607218,4165.5,4165.4,7.649]
[1759264224093,2.40072982,4165.4,4165.3,5.47680251]
[1759264224293,3.08612982,4165.4,4165.3,8.22980251]
[1759264224594,3.20612982,4165.4,4165.3,8.22980251]
[1759264225127,2.52072982,4165.4,4165.3,8.22980251]
[1759264234754,2.52072982,4165.4,4165.3,10.62980251]
[1759264238252,2.52172982,4165.4,4165.3,10.62980251]
[1759264238957,2.75952982,4165.4,4165.3,10.62980251]
[1759264239163,2.75952982,4165.4,4165.3,2.4]
[1759264239164,2.52172982,4165.4,4165.3,2.4]
[1759264239457,2.40084509,4165.2,4165.1,0.002]
[1759264239662,2.40084509,4165.2,4165.1,2.754]
[1759264239957,2.40084509,4165.2,4165.0,0.002]
[1759264239958,2.40090273,4165.1,4165.0,0.002]
[1759264240166,2.40101803,4164.9,4164.8,1e-08]
[1759264240645,3.1825602,4164.9,4164.8,1e-08]
[1759264241030,2.40124864,4164.5,4164.4,0.002]
[1759264241427,3.19984864,4164.5,4164.4,0.002]
[1759264242238,3.19984864,4164.5,4164.4,2.754]
[1759264246960,2.40137595,4164.3,4163.8,2.6427]
[1759264247162,2.40165233,4163.8,4163.7,6.34281726]
[1759264247347,2.40165233,4163.8,4163.7,8.74281726]
[1759264247548,2.40165233,4163.8,4163.7,6.34281726]
[1759264248385,2.40165233,4163.8,4163.7,9.09481726]
[1759264249072,2.40165233,4163.8,4163.7,6.34281726]
[1759264249280,2.40165233,4163.8,4163.7,9.09481726]
[1759264249776,2.40165233,4163.8,4163.7,10.18979685]
[1759264250080,2.40165233,4163.8,4163.7,3.84697959]
[1759264250374,2.40165233,4163.8,4163.7,10.18979685]
[1759264251980,2.40165233,4163.8,4163.7,10.53041983]
[1759264252481,2.40165233,4163.8,4163.7,10.05581983]
[1759264252887,2.40165233,4163.8,4163.7,9.81311983]
[1759264253054,2.40165233,4163.8,4163.7,12.31011983]
[1759264254054,2.40165233,4163.8,4163.7,7.06111983]
[1759264254246,2.40165233,4163.8,4163.7,12.31011983]
[1759264256950,2.40165233,4163.8,4163.7,12.55281983]
[1759264257165,2.40165233,4163.8,4163.7,13.02741983]
[1759264257971,2.40165233,4163.8,4163.7,12.31011983]
[1759264260384,2.64935233,4163.8,4163.7,9.81311983]
[1759264260787,3.08025233,4163.8,4163.7,7.06111983]
[1759264260984,3.08025233,4163.8,4163.6,0.002]
[1759264260985,2.40171001,4163.7,4163.6,0.002]
[1759264261185,3.08031001,4163.7,4163.6,1.582]
[1759264261780,2.40171001,4163.7,4163.6,1.582]
[1759264262090,2.64941001,4163.7,4163.6,1.582]
[1759264262279,3.08031001,4163.7,4163.6,1.582]
[1759264262474,2.64941001,4163.7,4163.6,1.582]
[1759264262875,2.40171001,4163.7,4163.6,0.002]
[1759264263075,2.40171001,4163.7,4163.6,3.47230257]
[1759264264889,2.52171001,4163.7,4163.6,4.18960257]
[1759264266677,2.52171001,4163.7,4163.6,3.47230257]
[1759264267083,2.52171001,4163.7,4163.6,4.18960257]
[1759264267489,2.52171001,4163.7,4163.6,3.71500257]
[1759264267913,2.52171001,4163.7,4163.6,4.18960257]
[1759264270010,2.52171001,4163.7,4163.6,3.47230257]
[1759264270377,2.52171001,4163.7,4163.6,0.34262298]
[1759264270789,2.52171001,4163.7,4163.6,5.59062298]
[1759264270984,2.52171001,4163.7,4163.6,0.34262298]
[1759264271189,2.52171001,4163.7,4163.6,5.25]
[1759264271936,2.52171001,4163.7,4163.6,6.65930257]
[1759264272233,2.52171001,4163.7,4163.6,5.96830257]
[1759264272443,2.52171001,4163.7,4163.6,6.21460257]
[1759264272608,2.52171001,4163.7,4163.6,6.65930257]
[1759264272802,2.40121246,4164.6,4163.7,2.4]
[1759264273034,2.40207025,4164.9,4163.7,2.4]
[1759264273035,2.40153698,4164.0,4163.8,2.77501652]
[1759264273203,2.40153698,4164.0,4163.9,1.40930257]
[1759264273733,0.001,4164.9,4163.9,3.80930257]
[1759264273926,2.40107568,4164.8,4164.3,0.12]
[1759264274129,0.001,4164.9,4164.8,2.4]
[1759264274309,0.001,4164.9,4164.8,6.56030257]
[1759264274511,2.40201803,4164.9,4164.8,6.56030257]
[1759264275608,2.40201803,4164.9,4164.8,6.31400257]
[1759264275808,2.40201803,4164.9,4164.4,8.74281726]
[1759264275809,2.40124864,4164.5,4164.4,8.74281726]
[1759264276146,2.52124864,4164.5,4164.4,13.99081726]
[1759264276321,2.52124864,4164.5,4164.4,14.36849685]
[1759264277130,2.18062566,4164.5,4164.4,15.05949685]
[1759264278908,2.18062566,4164.5,4164.4,14.68181726]
[1759264281451,2.18062566,4164.5,4164.4,15.96748946]
[1759264281951,2.18062566,4164.5,4164.4,15.02841352]
[1759264282133,0.12,4164.5,4164.4,15.02841352]
[1759264282313,2.40119099,4164.6,4164.5,2.4]
[1759264282512,2.40119099,4164.6,4164.5,3.1035]
[1759264283647,2.40119099,4164.6,4164.5,2.74659626]
[1759264284155,2.63839099,4164.6,4164.5,7.647]
[1759264284450,2.63839099,4164.6,4164.5,2.4]
[1759264284616,2.40119099,4164.6,4164.5,7.647]
[1759264284814,2.63839099,4164.6,4164.5,7.647]
[1759264285716,2.40119099,4164.6,4164.5,2.4]
[1759264285918,2.40119099,4164.6,4164.5,7.647]
[1759264285919,2.63839099,4164.6,4164.5,7.647]
[1759264287025,2.40119099,4164.6,4164.5,7.647]
[1759264287226,2.63839099,4164.6,4164.5,7.647]
[1759264288350,3.10119099,4164.6,4164.5,2.4]
[1759264288556,3.10119099,4164.6,4164.5,7.647]
[1759264288854,3.10119099,4164.6,4164.4,8.74281726]
[1759264288855,2.40124864,4164.5,4164.4,8.74281726]
[1759264289057,3.10124864,4164.5,4164.4,11.49281726]
[1759264290022,2.63844864,4164.5,4164.4,11.49281726]
[1759264290529,2.40124864,4164.5,4164.4,11.49281726]
[1759264292357,2.40124864,4164.5,4164.4,14.23001726]
[1759264292562,2.40124864,4164.5,4164.4,8.74281726]
[1759264292766,3.10124864,4164.5,4164.4,13.98981726]
[1759264293629,2.40130631,4164.4,4164.3,2.499]
[1759264293838,2.40130631,4164.4,4164.3,5.249]
[1759264294040,3.22130631,4164.4,4164.3,5.249]
[1759264295122,2.75850631,4164.4,4164.3,5.249]
[1759264296044,2.52130631,4164.4,4164.3,5.249]
[1759264296530,2.52130631,4164.4,4164.3,5.4892]
[1759264298676,2.52130631,4164.4,4164.3,5.249]
[1759264298857,0.12,4164.4,4164.3,10.73180534]
[1759264299373,0.001,4164.6,4164.4,3.29913399]
[1759264299374,2.40223216,4164.6,4164.4,3.29913399]
[1759264299571,2.40223216,4164.6,4164.5,5.8535]
[1759264299867,2.40223216,4164.6,4164.5,6.20009626]
[1759264300050,2.40223216,4164.6,4164.5,3.45009626]
[1759264300261,2.40223216,4164.6,4164.5,5.49659626]
[1759264300969,2.40223216,4164.6,4164.5,5.72349626]
[1759264302072,2.40223216,4164.6,4164.5,5.49659626]
[1759264302570,2.40223216,4164.6,4164.5,5.72349626]
[1759264303566,2.40219099,4164.6,4164.5,6.19429626]
[1759264304190,0.001,4164.6,4164.5,6.43459626]
[1759264304367,0.001,4164.6,4164.5,11.91219967]
[1759264304368,2.40219099,4164.6,4164.5,11.91219967]
[1759264304688,2.40150682,4165.8,4164.6,2.74659626]
[1759264304689,0.001,4165.4,4164.6,2.74659626]
[1759264304854,0.001,4165.4,4164.9,5.47760341]
[1759264304855,2.40096044,4165.0,4164.9,5.47760341]
[1759264305042,2.52178815,4165.3,4164.9,9.51119967]
[1759264305242,2.40190273,4165.1,4165.0,0.58689626]
[1759264305449,2.52178815,4165.3,4165.0,6.76219967]
[1759264305450,2.40084509,4165.2,4165.0,6.76219967]
[1759264305744,2.40084509,4165.2,4165.1,3.4467]
[1759264306691,2.40090273,4165.1,4165.0,5.47760341]
[1759264307183,2.40090273,4165.1,4165.0,10.72360341]
[1759264310100,2.40090273,4165.1,4165.0,11.42130341]
[1759264310903,2.40090273,4165.1,4165.0,10.72360341]
[1759264312399,0.121,4165.3,4165.0,11.42130341]
[1759264312599,2.40089987,4165.2,4165.1,0.72170902]
[1759264312787,2.40089987,4165.2,4165.1,3.4467]
[1759264313107,2.40090273,4165.1,4165.0,5.82419967]
[1759264313306,2.40090273,4165.1,4165.0,11.07019967]
[1759264313605,2.40096038,4165.0,4164.9,7.87760341]
[1759264313900,3.20346038,4165.0,4164.9,10.37460341]
[1759264314069,3.20346038,4165.0,4164.9,10.72360341]
[1759264316671,2.76896038,4165.0,4164.9,10.72360341]
[1759264316868,2.76896038,4165.0,4164.9,16.89890682]
[1759264316869,2.52096038,4165.0,4164.9,16.89890682]
[1759264317983,2.52096038,4165.0,4164.9,10.95050341]
[1759264318184,3.20346038,4165.0,4164.9,5.47760341]
[1759264318510,3.20346038,4165.0,4164.9,10.72260341]
[1759264322421,2.76896038,4165.0,4164.9,10.72260341]
[1759264324350,2.76896038,4165.0,4164.9,8.22560341]
[1759264324708,3.20346038,4165.0,4164.9,8.22560341]
[1759264325120,2.76896038,4165.0,4164.9,8.22560341]
[1759264328102,2.52096038,4165.0,4164.9,8.22560341]
[1759264329026,2.76896038,4165.0,4164.9,8.22560341]
[1759264330538,2.52096038,4165.0,4164.9,5.47760341]
[1759264330831,2.52096038,4165.0,4164.9,16.89790682]
[1759264332730,0.12,4165.0,4164.9,19.29790682]
[1759264333050,0.001,4165.2,4165.0,2.4]
[1759264333251,0.001,4165.2,4165.1,5.8289]
[1759264333825,2.40184509,4165.2,4165.1,5.8289]
[1759264334449,0.001,4165.2,4165.1,5.8289]
[1759264335259,2.40184509,4165.2,4165.1,5.8289]
[1759264335476,0.001,4165.2,4165.1,6.94146455]
[1759264335760,0.001,4165.2,4165.1,8.20926081]
[1759264336260,0.001,4165.2,4165.1,8.52149854]
[1759264340488,0.12,4165.5,4165.2,2.74659626]
[1759264340670,0.12,4165.5,4165.4,7.87760341]
[1759264341060,0.001,4165.6,4165.4,8.58650341]
[1759264341264,0.001,4165.6,4165.5,3.47990672]
[1759264341651,0.2481,4166.3,4165.6,4.80056112]
[1759264341652,2.40023337,4166.3,4165.6,4.80056112]
[1759264341852,2.52021121,4166.3,4166.2,13.35520682]
[1759264342041,2.52021121,4166.3,4166.2,10.62460341]
[1759264343978,2.52021121,4166.3,4166.2,16.81110682]
[1759264344675,2.52021121,4166.3,4166.2,10.62460341]
[1759264345377,0.12,4166.3,4166.2,11.33350341]
[1759264345581,2.52021121,4166.3,4166.2,16.81110682]
[1759264345777,2.52021121,4166.3,4166.2,10.62460341]
[1759264346807,0.12,4166.3,4166.2,11.33350341]
[1759264347010,2.40005363,4166.6,4166.3,2.4]
[1759264347208,0.12,4166.7,4166.5,5.47760341]
[1759264347505,2.52000441,4166.7,4166.6,3.4549]
[1759264349600,2.52000441,4166.7,4166.6,2.995]
[1759264350316,2.52000441,4166.7,4166.6,2.746]
[1759264350475,2.76810441,4166.7,4166.6,2.746]
[1759264350815,3.22370441,4166.7,4166.6,2.746]
[1759264351382,2.76810441,4166.7,4166.6,2.746]
[1759264352612,2.76910441,4166.7,4166.6,2.746]
[1759264353618,0.121,4166.7,4166.1,0.12]
[1759264353829,0.121,4166.7,4166.2,7.641]
[1759264353830,2.40021121,4166.3,4166.2,7.641]
[1759264354174,3.10391121,4166.3,4166.2,7.641]
[1759264355211,2.64831121,4166.3,4166.2,7.641]
[1759264357936,2.40021121,4166.3,4166.2,7.641]
[1759264358600,2.64831121,4166.3,4166.2,7.641]
[1759264361297,2.40021121,4166.3,4166.2,7.641]
[1759264368716,2.64781121,4166.3,4166.2,7.641]
[1759264368935,2.64781121,4166.3,4166.2,4.896]
[1759264369121,3.09341121,4166.3,4166.2,7.64]
[1759264370246,2.64781121,4166.3,4166.2,7.64]
[1759264370550,2.64881121,4166.3,4166.2,7.64]
[1759264371621,3.09441121,4166.3,4166.2,7.64]
[1759264373753,2.64881121,4166.3,4166.2,7.64]
[1759264374650,2.40121121,4166.3,4166.2,7.64]
[1759264375361,2.64881121,4166.3,4166.2,7.64]
[1759264377175,2.40121121,4166.3,4166.2,7.64]
[1759264379761,2.64881121,4166.3,4166.2,7.64]
[1759264379945,3.09441121,4166.3,4165.8,0.002]
[1759264380146,2.40032644,4166.1,4166.0,2.4]
[1759264380382,2.40032644,4166.1,4166.0,5.143]
[1759264381051,2.64792644,4166.1,4166.0,5.143]
[1759264381264,2.64792644,4166.1,4166.0,2.4]
[1759264381586,3.09352644,4166.1,4166.0,7.639]
[1759264382784,2.64792644,4166.1,4166.0,7.639]
[1759264384055,2.40032644,4166.1,4166.0,7.639]
[1759264384678,2.40032644,4166.1,4166.0,7.8823]
[1759264384903,2.40026883,4166.2,4166.1,2.4]
[1759264385111,2.40026883,4166.2,4166.1,2.743]
[1759264385275,2.40026883,4166.2,4166.1,5.8458]
[1759264387475,0.001,4166.3,4166.2,2.4]
[1759264387682,0.001,4166.3,4166.2,3.12680268]
[1759264387876,0.001,4166.3,4166.2,4.36743813]
[1759264388393,0.001,4166.3,4166.2,5.27943813]
[1759264388574,0.001,4166.3,4166.2,5.25543545]
[1759264389815,2.40121121,4166.3,4166.2,10.34347053]
[1759264389971,2.40121121,4166.3,4166.2,9.10283508]
[1759264390375,0.001,4166.3,4166.2,8.4618]
[1759264390820,2.40121121,4166.3,4166.2,8.4618]
[1759264391312,0.001,4166.3,4166.2,9.10268045]
[1759264391483,0.001,4166.3,4166.2,8.4618]
[1759264391689,0.001,4166.3,4166.2,9.54404813]
[1759264393202,0.001,4166.3,4166.2,15.87677768]
[1759264394505,0.001,4166.7,4166.3,0.792]
[1759264394704,0.4466,4168.0,4166.3,0.792]
[1759264394705,3.35419914,4167.7,4166.7,2.4]
[1759264394937,2.40069283,4167.2,4167.1,6.33272955]
[1759264395250,2.84729283,4167.2,4167.1,9.07472955]
[1759264395735,3.08149283,4167.2,4167.1,11.57072955]
[1759264395911,3.08149283,4167.2,4167.1,6.33272955]
[1759264396113,2.63489283,4167.2,4167.1,6.33272955]
[1759264396328,2.63489283,4167.2,4167.1,11.57072955]
[1759264396514,2.40069283,4167.2,4167.1,11.57072955]
[1759264398821,2.40069283,4167.2,4167.1,11.81662955]
[1759264399025,2.40069283,4167.2,4167.1,13.0424425]
[1759264399215,0.001,4167.2,4167.1,12.7965425]
[1759264399433,0.001,4167.2,4167.1,13.5964425]
[1759264399642,2.40069283,4167.2,4167.1,13.5964425]
[1759264400038,2.40069283,4167.2,4167.1,12.9165425]
[1759264401734,2.40069283,4167.2,4167.1,15.3165425]
[1759264401932,2.40069283,4167.2,4167.1,15.5624425]
[1759264402552,0.001,4167.2,4167.1,15.5624425]
[1759264402767,2.51948457,4167.6,4167.2,2.4]
[1759264402934,2.51948457,4167.6,4167.5,6.33272955]
[1759264403133,2.51948457,4167.6,4167.5,9.75462955]
[1759264404867,2.51948457,4167.6,4167.5,12.15462955]
[1759264406139,0.12,4167.9,4167.6,2.4]
[1759264406466,2.51928981,4167.9,4167.8,8.73272955]
[1759264406859,2.51928981,4167.9,4167.8,8.97862955]
[1759264407238,2.51928981,4167.9,4167.8,8.73272955]
[1759264407440,2.39916508,4168.2,4167.9,2.4]
[1759264407635,2.39917468,4168.1,4168.0,3.01089232]
[1759264407843,2.39917468,4168.1,4168.0,9.34362187]
[1759264408052,2.39913706,4168.2,4168.0,9.75362955]
[1759264408254,2.39913706,4168.2,4168.0,9.07372955]
[1759264408463,2.39913706,4168.2,4168.1,0.6799]
[1759264408653,2.39905778,4168.4,4168.1,3.0799]
[1759264408854,2.39905778,4168.4,4168.2,3.4209]
[1759264409055,0.12,4168.7,4168.3,2.42399059]
[1759264409275,2.51882937,4168.7,4168.6,6.33272955]
[1759264409479,2.51882937,4168.7,4168.6,9.07372955]
[1759264410887,2.76152937,4168.7,4168.6,9.07372955]
[1759264418202,2.51882937,4168.7,4168.6,9.75362955]
[1759264418369,2.39882937,4168.7,4168.6,9.75362955]
[1759264419560,2.39882937,4168.7,4168.6,9.31962955]
[1759264419992,2.39882937,4168.7,4168.6,9.75362955]
[1759264421164,2.39882937,4168.7,4168.6,12.15362955]
[1759264421364,2.39882937,4168.7,4168.6,11.47372955]
[1759264421878,2.39982937,4168.7,4168.6,11.71732955]
[1759264422608,0.001,4168.7,4168.6,11.71732955]
[1759264422813,0.001,4168.7,4168.6,12.19042955]
[1759264423023,2.39982937,4168.7,4168.6,12.19042955]
[1759264423696,2.39982937,4168.7,4168.6,11.47372955]
[1759264423897,2.39982937,4168.7,4168.6,12.19042955]
[1759264425104,2.39982937,4168.7,4168.6,11.47372955]
[1759264426294,2.39982937,4168.7,4168.6,10.60876184]
[1759264429021,0.001,4168.7,4168.6,10.85236184]
[1759264429226,0.001,4168.7,4168.6,12.42269802]
[1759264429422,2.39982937,4168.7,4168.6,12.42269802]
[1759264429930,0.001,4168.7,4168.6,11.70599802]
[1759264430131,2.39982937,4168.7,4168.6,12.42269802]
[1759264431212,2.39982937,4168.7,4168.6,11.94959802]
[1759264433041,0.001,4168.7,4168.6,11.70599802]
[1759264433221,2.39982937,4168.7,4168.6,11.70599802]
[1759264433599,0.001,4168.7,4168.6,11.70599802]
[1759264434019,2.39982937,4168.7,4168.6,14.19999802]
[1759264434509,0.001,4168.7,4168.6,14.19999802]
[1759264434709,2.39982937,4168.7,4168.6,14.19999802]
[1759264435028,0.001,4168.7,4168.6,14.19999802]
[1759264435201,0.001,4168.7,4168.6,14.91669802]
[1759264435639,0.001,4168.7,4168.6,9.44893618]
[1759264435843,0.001,4168.7,4168.6,14.19999802]
[1759264436700,2.39982937,4168.7,4168.6,14.19999802]
[1759264438336,2.39982937,4168.7,4168.6,3.49723618]
[1759264438510,3.08222937,4168.7,4168.6,7.632]
[1759264438917,3.08222937,4168.7,4168.6,2.4]
[1759264439116,3.08222937,4168.7,4168.6,7.632]
[1759264439640,2.39982937,4168.7,4168.6,7.632]
[1759264440200,0.001,4168.7,4168.6,8.3487]
[1759264440404,0.001,4168.7,4168.6,9.07754661]
[1759264440649,0.001,4168.7,4168.6,11.71684714]
[1759264440938,0.001,4168.7,4168.6,11.40874727]
[1759264441705,0.001,4168.7,4168.6,11.64904727]
[1759264441905,0.001,4168.7,4168.6,11.31814287]
[1759264442116,0.001,4168.7,4168.6,12.16983534]
[1759264442717,0.001,4168.7,4168.6,11.31814287]
[1759264445032,0.001,4168.7,4168.6,5.84584287]
[1759264445233,0.001,4168.7,4168.6,9.98854661]
[1759264445608,0.2332,4168.7,4168.6,3.96554661]
[1759264445814,0.6834,4168.7,4168.6,7.631]
[1759264446124,0.6834,4168.7,4168.6,8.27081185]
[1759264446326,3.08222937,4168.7,4168.6,7.631]
[1759264446644,3.08222937,4168.7,4168.6,2.4]
[1759264447013,3.08222937,4168.7,4168.6,7.631]
[1759264450135,3.08222937,4168.7,4168.6,4.894]
[1759264450335,3.20222937,4168.7,4168.6,7.631]
[1759264450541,3.20222937,4168.7,4168.6,2.4]
[1759264450736,3.20222937,4168.7,4168.6,7.631]
[1759264450936,3.20222937,4168.7,4168.6,2.4]
[1759264451348,3.20222937,4168.7,4168.3,0.64232079]
[1759264451349,2.39900201,4168.4,4168.3,2.496]
[1759264451565,3.07980201,4168.4,4168.3,5.233]
[1759264451752,3.19980201,4168.4,4168.3,5.233]
[1759264452267,3.19980201,4168.4,4168.3,0.002]
[1759264452776,2.39923224,4168.0,4167.9,0.002]
[1759264452962,2.75915546,4168.0,4167.9,0.002]
[1759264453140,3.43995546,4168.0,4167.9,0.002]
[1759264454065,3.43995546,4168.0,4167.9,2.739]
[1759264454266,3.43995546,4168.0,4167.9,0.002]
[1759264454566,3.43995546,4168.0,4167.9,2.739]
[1759264456768,2.75915546,4168.0,4167.9,2.739]
[1759264456935,2.39923224,4168.0,4167.9,2.739]
[1759264457137,2.39923224,4168.0,4167.9,0.002]
[1759264457364,3.08003224,4168.0,4167.9,2.739]
[1759264462709,2.39923224,4168.0,4167.9,2.739]
[1759264462907,2.39923224,4168.0,4167.9,3.4355]
[1759264463406,3.07603224,4168.0,4167.9,0.002]
[1759264463702,3.07603224,4168.0,4167.9,2.739]
[1759264464368,3.07603224,4168.0,4167.9,0.002]
[1759264464698,2.39952009,4167.5,4167.4,0.002]
[1759264464999,2.39952009,4167.5,4167.4,2.739]
[1759264465206,3.07632009,4167.5,4167.4,2.739]
[1759264465714,2.39952009,4167.5,4167.4,2.739]
[1759264466373,2.64142009,4167.5,4167.4,2.739]
[1759264466573,3.07632009,4167.5,4167.4,2.739]
[1759264466906,3.19632009,4167.5,4167.4,2.739]
[1759264468614,2.51952009,4167.5,4167.4,2.739]
[1759264468800,2.76142009,4167.5,4167.4,2.739]
[1759264469374,3.19632009,4167.5,4167.4,2.739]
[1759264470873,3.19632009,4167.5,4167.4,0.002]
[1759264471076,3.19632009,4167.5,4167.4,2.739]
[1759264476629,2.51952009,4167.5,4167.4,8.90326184]
[1759264477244,2.51952009,4167.5,4167.4,0.2346]
[1759264477410,3.19632009,4167.5,4167.4,2.739]
[1759264477803,2.76142009,4167.5,4167.4,2.739]
[1759264481728,3.21222009,4167.5,4167.4,2.739]
[1759264483741,2.76142009,4167.5,4167.4,2.739]
[1759264485860,2.51952009,4167.5,4167.4,2.739]
[1759264486932,2.51952009,4167.5,4167.4,0.002]
[1759264487252,2.51952009,4167.5,4167.4,2.738]
[1759264487422,2.76582009,4167.5,4167.4,2.738]
[1759264488150,2.76582009,4167.5,4167.4,3.4274]
[1759264488350,2.51952009,4167.5,4167.4,3.4274]
[1759264489216,2.51952009,4167.5,4167.4,3.94030326]
[1759264489453,2.51952009,4167.5,4167.4,4.60759882]
[1759264490461,0.12,4167.5,4167.4,4.60759882]
[1759264490652,0.12,4167.8,4167.4,4.60759882]
[1759264490887,2.39940494,4167.7,4167.5,1.20230326]
[1759264491179,2.39940494,4167.7,4167.6,3.93830326]
[1759264491367,2.39940494,4167.7,4167.6,5.74390326]
[1759264491573,2.39940494,4167.7,4167.6,5.231]
[1759264491783,2.39952009,4167.5,4167.4,0.002]
[1759264491977,2.51952009,4167.5,4167.4,5.74656961]
[1759264492283,2.51952009,4167.5,4167.4,5.99286961]
[1759264492680,2.51952009,4167.5,4167.4,1.20496961]
[1759264492882,2.51952009,4167.5,4167.4,6.43596961]
[1759264495258,2.51952009,4167.5,4167.4,0.51556961]
[1759264495582,3.21682009,4167.5,4167.4,2.738]
[1759264495781,3.21682009,4167.5,4167.4,0.002]
[1759264496088,3.21682009,4167.5,4167.4,2.738]
[1759264496250,2.76602009,4167.5,4167.4,2.738]
[1759264498600,2.76602009,4167.5,4167.4,0.002]
[1759264498601,3.21682009,4167.5,4167.4,0.002]
[1759264498784,3.21682009,4167.5,4167.1,0.002]
[1759264498785,2.39969283,4167.2,4167.1,0.002]
[1759264498988,2.51969283,4167.2,4167.1,2.738]
[1759264499189,3.21699283,4167.2,4167.1,2.738]
[1759264499592,3.21699283,4167.2,4167.1,0.002]
[1759264499793,3.21699283,4167.2,4167.1,2.738]
[1759264500698,2.51969283,4167.2,4167.1,2.9843]
[1759264501202,2.51969283,4167.2,4167.1,3.4274]
[1759264501512,2.51969283,4167.2,4167.1,2.738]
[1759264502610,2.76619283,4167.2,4167.1,2.738]
[1759264503116,2.51969283,4167.2,4167.1,2.738]
[1759264504808,2.51969283,4167.2,4167.1,2.9843]
[1759264505608,2.51969283,4167.2,4167.1,5.8274]
[1759264505807,2.51969283,4167.2,4167.1,7.80965065]
[1759264506259,0.12,4167.2,4167.1,7.80965065]
[1759264506437,2.39964402,4167.3,4167.1,7.80965065]
[1759264506615,2.39969283,4167.2,4167.1,6.60609634]
[1759264506815,2.39969283,4167.2,4167.1,7.1202234]
[1759264507145,2.39969283,4167.2,4167.1,7.8096234]
[1759264507909,2.39967761,4167.3,4167.1,7.8096234]
[1759264508109,2.39969283,4167.2,4167.1,6.60609634]
[1759264508353,2.39969283,4167.2,4167.1,7.12040607]
[1759264508551,2.39969283,4167.2,4167.1,5.65230973]
[1759264508712,2.39958026,4167.4,4167.1,6.34170973]
[1759264508911,0.12,4167.5,4167.2,1.20370973]
[1759264508912,2.39963525,4167.3,4167.2,1.20370973]
[1759264509358,2.40039231,4167.8,4167.3,0.792]
[1759264509523,2.40039231,4167.8,4167.5,2.4]
[1759264509843,2.40039231,4167.8,4167.6,3.93870973]
[1759264510050,0.001,4167.8,4167.7,6.43370973]
[1759264510219,2.40034737,4167.8,4167.7,5.74430973]
[1759264510420,2.52034737,4167.8,4167.7,5.23]
[1759264510619,2.52034737,4167.8,4167.7,5.9194]
[1759264511419,0.121,4167.8,4167.7,5.9194]
[1759264511621,0.001,4167.8,4167.7,7.65810977]
[1759264511821,0.001,4167.8,4167.7,11.22170603]
[1759264512024,0.001,4167.8,4167.7,11.34170603]
[1759264514865,0.001,4167.8,4167.7,10.97010977]
[1759264515570,2.40034737,4167.8,4167.7,4.39491329]
[1759264515873,2.40034737,4167.8,4167.7,2.91351329]
[1759264516071,0.001,4167.8,4167.7,8.14351329]
[1759264516467,0.001,4167.8,4167.7,8.38221329]
[1759264516671,0.001,4167.8,4167.7,8.83311329]
[1759264517040,2.40034737,4167.8,4167.7,8.38221329]
[1759264517234,2.40034737,4167.8,4167.7,8.14351329]
[1759264518075,2.40034737,4167.8,4167.7,8.38221329]
[1759264518076,0.001,4167.8,4167.7,8.38221329]
[1759264518241,0.001,4167.8,4167.7,8.83311329]
[1759264518571,2.40034737,4167.8,4167.7,2.91351329]
[1759264518742,2.40034737,4167.8,4167.7,8.14351329]
[1759264519175,2.40034737,4167.8,4167.7,2.91351329]
[1759264519353,2.52034737,4167.8,4167.7,7.63]
[1759264520889,0.121,4167.8,4167.7,8.14307573]
[1759264521094,2.52034737,4167.8,4167.7,8.14307573]
[1759264521281,2.52034737,4167.8,4167.7,8.38617573]